bitfinex-derivatives/quotes_SOLF0:USTF0_20260211
["timestamp","ask_amount","ask_price","bid_price","bid_amount"]
[1770814075949,11.1017,81.113,81.075,11.1068]
[1770814075950,12.49519007,81.106,81.075,1.501e-05]
[1770814076258,12.49519007,81.106,81.06,26.70288462]
[1770814076555,22.1946,81.146,81.06,26.70288462]
[1770814076556,12.49519007,81.117,81.067,26.70288462]
[1770814077654,3.50290315,81.11,81.067,26.70288462]
[1770814077848,3.50290315,81.11,81.07,26.70288462]
[1770814077849,11.1025,81.108,81.07,26.70288462]
[1770814078051,3.50290315,81.1,81.059,26.70288462]
[1770814078357,12.44850085,81.099,81.059,26.70288462]
[1770814078848,11.1039,81.097,81.059,26.70288462]
[1770814080058,11.1039,81.097,81.067,26.70288462]
[1770814082051,23.3870539,81.119,81.071,26.70288462]
[1770814082653,11.1036,81.099,81.071,26.70288462]
[1770814084461,11.1045,81.093,81.06,26.70288462]
[1770814085155,24.26143973,81.127,81.07,3.50290315]
[1770814085360,24.26143973,81.127,81.071,26.70288462]
[1770814085664,3.50290315,81.12,81.071,26.70288462]
[1770814086456,3.50290315,81.12,81.07,3.50290315]
[1770814086457,24.26143973,81.127,81.074,26.70288462]
[1770814086663,24.26143973,81.127,81.081,26.70288462]
[1770814087761,11.1009,81.119,81.091,26.70288462]
[1770814089266,11.1017,81.113,81.077,26.70288462]
[1770814089465,24.75763819,81.112,81.077,26.70288462]
[1770814090059,24.75763819,81.112,81.078,11.1064]
[1770814090666,11.1009,81.12,81.08,37.80898462]
[1770814090867,11.1009,81.12,81.081,26.70288462]
[1770814091667,11.1009,81.12,81.082,37.80878462]
[1770814092259,11.1009,81.12,81.083,26.70288462]
[1770814093364,24.55481677,81.115,81.074,11.1069]
[1770814093667,24.55481677,81.109,81.072,26.70288462]
[1770814094860,24.37958526,81.108,81.072,26.70288462]
[1770814095368,11.1031,81.103,81.062,11.1087]
[1770814098764,35.22061868,81.103,81.062,11.1087]
[1770814098961,24.11751868,81.103,81.06,26.70288462]
[1770814099771,3.50290315,81.1,81.06,26.70288462]
[1770814100070,24.11751868,81.103,81.06,26.70288462]
[1770814100464,3.50290315,81.1,81.06,26.70288462]
[1770814100664,11.1038,81.098,81.06,37.81168462]
[1770814100966,23.97730655,81.097,81.06,37.81168462]
[1770814103364,11.1038,81.098,81.067,26.03596022]
[1770814104365,34.94189861,81.088,81.056,26.03596022]
[1770814105971,11.1051,81.088,81.056,26.03596022]
[1770814108368,23.3649011,81.099,81.059,27.02773683]
[1770814110869,11.1054,81.087,81.059,27.02773683]
[1770814115274,25.60276739,81.099,81.061,27.02773683]
[1770814116469,11.1056,81.085,81.061,27.02773683]
[1770814122769,25.60276739,81.09,81.041,26.47472564]
[1770814122770,11.1069,81.075,81.048,27.02773683]
[1770814129677,147.22,81.094,81.051,27.02773683]
[1770814129678,11.1056,81.085,81.051,27.02773683]
[1770814134191,11.1056,81.085,80.994,74.80201634]
[1770814134192,11.1044,81.094,81.061,25.19356251]
[1770814134393,24.56118689,81.112,81.061,25.19356251]
[1770814134601,11.1025,81.107,81.071,25.19356251]
[1770814135788,24.56118689,81.134,81.091,25.19356251]
[1770814136786,11.0994,81.13,81.091,25.19356251]
[1770814137687,24.56118689,81.122,81.08,3.50614444]
[1770814137993,24.56118689,81.122,81.081,25.19356251]
[1770814138201,24.56118689,81.122,81.085,25.19356251]
[1770814139599,24.56118689,81.122,81.088,25.19356251]
[1770814140795,11.0994,81.13,81.091,25.19356251]
[1770814143200,11.0994,81.13,81.101,25.19356251]
[1770814143994,11.1002,81.124,81.101,25.19356251]
[1770814144195,24.56118689,81.123,81.089,25.19356251]
[1770814145898,11.1005,81.122,81.089,25.19356251]
[1770814146205,24.56118689,81.123,81.089,25.19356251]
[1770814146703,11.1013,81.116,81.089,25.19356251]
[1770814155208,152.2,81.136,81.089,25.19356251]
[1770814155408,24.56118689,81.15,81.111,25.19356251]
[1770814155915,28.06733133,81.15,81.111,25.19356251]
[1770814156509,24.56118689,81.15,81.111,25.19356251]
[1770814156713,11.0973,81.145,81.111,25.19356251]
[1770814158312,24.56118689,81.139,81.09,3.50614444]
[1770814158709,24.56118689,81.139,81.1,3.50614444]
[1770814159812,11.0983,81.138,81.1,3.50614444]
[1770814160215,11.0983,81.138,81.101,25.19356251]
[1770814164025,11.0993,81.131,81.101,25.19356251]
[1770814165325,11.0984,81.138,81.101,25.19356251]
[1770814167723,11.0984,81.138,81.103,23.33014078]
[1770814169226,35.26684507,81.151,81.11,26.83628522]
[1770814170628,35.26684507,81.151,81.112,23.33014078]
[1770814174338,35.26684507,81.151,81.114,23.33014078]
[1770814179143,35.26684507,81.151,81.116,23.33014078]
[1770814179340,272.12,81.162,81.12,3.5006109]
[1770814179341,33.89821247,81.161,81.12,3.5006109]
[1770814179644,22.80301247,81.16,81.121,23.33014078]
[1770814180744,22.80301247,81.16,81.125,11.1]
[1770814181345,26.30362337,81.16,81.125,11.1]
[1770814182546,22.80301247,81.16,81.128,23.33014078]
[1770814185751,11.0954,81.159,81.128,23.33014078]
[1770814188647,22.80301247,81.139,81.097,23.33014078]
[1770814188852,22.80301247,81.129,81.088,23.33014078]
[1770814189456,22.80301247,81.129,81.09,23.33014078]
[1770814190956,22.22458241,81.141,81.101,21.27519834]
[1770814191654,22.22458241,81.141,81.102,21.27519834]
[1770814192757,22.22458241,81.141,81.104,21.27519834]
[1770814193154,278.04,81.144,81.104,21.27519834]
[1770814194753,278.04,81.144,81.112,11.1017]
[1770814194958,278.04,81.144,81.113,21.27519834]
[1770814196858,278.04,81.144,81.115,11.1013]
[1770814197056,22.22458241,81.143,81.113,21.27519834]
[1770814197964,11.0966,81.151,81.113,21.27519834]
[1770814198258,281.02,81.151,81.113,21.27519834]
[1770814198460,22.22458241,81.155,81.113,21.27519834]
[1770814199765,22.22458241,81.155,81.122,21.27519834]
[1770814200260,281.4,81.162,81.122,21.27519834]
[1770814200461,281.4,81.162,81.131,21.27519834]
[1770814201758,281.4,81.162,81.132,21.27519834]
[1770814202155,22.22458241,81.149,81.106,15.36332564]
[1770814202360,22.22458241,81.147,81.102,15.36332564]
[1770814202563,22.22458241,81.147,81.101,21.27519834]
[1770814202862,22.22458241,81.139,81.101,21.27519834]
[1770814203860,22.22458241,81.139,81.109,11.1021]
[1770814206663,22.22458241,81.139,81.102,11.1032]
[1770814206968,22.22458241,81.137,81.102,11.1032]
[1770814207555,25.72519331,81.13,81.102,11.1032]
[1770814207761,22.22458241,81.13,81.102,11.1032]
[1770814208664,25.72519331,81.13,81.095,11.104]
[1770814209161,25.72519331,81.13,81.09,21.27519834]
[1770814210767,25.72519331,81.13,81.101,11.1033]
[1770814213672,22.22458241,81.13,81.101,11.1033]
[1770814214972,22.22458241,81.13,81.094,11.1042]
[1770814215373,22.22458241,81.128,81.09,36.63852398]
[1770814215574,22.22458241,81.119,81.087,11.1052]
[1770814215872,22.22458241,81.119,81.087,32.38039834]
[1770814216074,22.22458241,81.129,81.09,24.77580924]
[1770814216574,22.22458241,81.129,81.09,21.27519834]
[1770814217675,22.22458241,81.129,81.092,11.1045]
[1770814217866,22.22458241,81.129,81.093,21.27519834]
[1770814223082,20.63915172,81.128,81.093,21.27519834]
[1770814223980,20.63915172,81.124,81.093,21.27519834]
[1770814226179,21.53164165,81.139,81.1,11.1034]
[1770814226384,21.53164165,81.139,81.093,21.27519834]
[1770814226883,21.53164165,81.139,81.101,20.31378376]
[1770814228982,21.53164165,81.139,81.103,20.31378376]
[1770814229181,25.03225255,81.15,81.103,20.31378376]
[1770814229386,25.03225255,81.16,81.111,20.31378376]
[1770814229685,21.53164165,81.16,81.111,20.31378376]
[1770814229879,21.53164165,81.16,81.121,20.31378376]
[1770814230283,3.5006109,81.17,81.131,20.31378376]
[1770814230492,25.03225255,81.17,81.131,20.31378376]
[1770814231488,21.53164165,81.168,81.13,11.0993]
[1770814231690,3.5006109,81.16,81.13,11.0993]
[1770814231887,25.03225255,81.16,81.13,11.0993]
[1770814232181,21.53164165,81.16,81.13,11.0993]
[1770814234983,21.53164165,81.16,81.122,11.1004]
[1770814235177,21.53164165,81.16,81.123,20.31378376]
[1770814236787,25.03225255,81.16,81.124,11.1002]
[1770814236987,25.03195122,81.16,81.124,11.1002]
[1770814238991,21.53164165,81.16,81.124,31.41398376]
[1770814239788,21.53164165,81.158,81.124,31.41398376]
[1770814245792,21.53164165,81.158,81.127,20.31378376]
[1770814245988,32.62574165,81.169,81.127,20.31378376]
[1770814246192,32.62574165,81.169,81.131,20.31378376]
[1770814246391,21.53164165,81.168,81.131,20.31378376]
[1770814249492,21.53164165,81.168,81.134,20.31378376]
[1770814251893,308.03430146,81.177,81.141,20.90621509]
[1770814252099,11.0928,81.179,81.141,20.90621509]
[1770814252100,19.23430146,81.176,81.141,20.90621509]
[1770814252705,19.23430146,81.176,81.144,11.0974]
[1770814253805,19.23430146,81.176,81.144,32.00361509]
[1770814256702,19.23430146,81.176,81.15,11.0966]
[1770814260307,294.68,81.184,81.151,20.90621509]
[1770814261205,313.91430146,81.184,81.151,20.90621509]
[1770814261505,19.23430146,81.183,81.151,20.90621509]
[1770814261911,19.23430146,81.18,81.144,11.0974]
[1770814262901,19.23430146,81.176,81.131,20.90621509]
[1770814264811,19.23430146,81.176,81.143,11.0975]
[1770814269920,19.23430146,81.169,81.133,11.0989]
[1770814270225,19.23430146,81.167,81.131,20.90621509]
[1770814271020,19.23430146,81.167,81.132,11.099]
[1770814271227,19.23430146,81.167,81.132,32.00521509]
[1770814271919,320.27430146,81.167,81.132,32.00521509]
[1770814272121,19.23430146,81.166,81.132,32.00521509]
[1770814274018,301.24,81.167,81.139,20.90621509]
[1770814280125,19.23430146,81.166,81.139,20.90621509]
[1770814284029,301.24,81.167,81.147,11.0969]
[1770814285835,301.24,81.167,81.147,29.37166733]
[1770814287033,291.42800001,81.167,81.148,18.27476733]
[1770814287232,308.34,81.177,81.148,18.27476733]
[1770814289834,308.34,81.177,81.149,11.0967]
[1770814293138,326.49093968,81.177,81.149,11.0967]
[1770814295843,326.49093968,81.177,81.149,29.37146733]
[1770814297339,18.15093968,81.176,81.14,11.0979]
[1770814297545,18.15093968,81.176,81.141,18.27476733]
[1770814298733,18.15093968,81.176,81.15,11.0966]
[1770814303452,308.34,81.177,81.155,11.0959]
[1770814306052,18.15093968,81.176,81.155,11.0959]
[1770814310752,308.34,81.177,81.13,3.49813993]
[1770814310753,308.34,81.177,81.163,11.0948]
[1770814310948,319.76,81.18,81.163,11.0948]
[1770814311153,3.49813993,81.21,81.164,19.32599503]
[1770814311446,319.84,81.209,81.164,19.32599503]
[1770814311954,3.49813993,81.21,81.164,19.32599503]
[1770814312253,3.49813993,81.2,81.164,19.32599503]
[1770814312450,98.32,81.199,81.164,19.32599503]
[1770814312946,115.26427492,81.199,81.175,11.0932]
[1770814314942,16.89420357,81.179,81.164,11.0946]
[1770814317154,19.87553881,81.19,81.164,11.0946]
[1770814320048,19.87553881,81.19,81.158,11.0954]
[1770814320249,16.37739888,81.19,81.151,19.32599503]
[1770814320554,16.6892606,81.2,81.157,19.32599503]
[1770814320754,20.18740053,81.2,81.157,19.32599503]
[1770814321765,238.9697,81.201,81.157,19.32599503]
[1770814321766,16.66350692,81.189,81.157,11.0956]
[1770814322649,16.6809902,81.169,81.14,15.36332564]
[1770814322852,16.6809902,81.169,81.131,15.36332564]
[1770814323252,16.6809902,81.169,81.134,11.0987]
[1770814325262,196.28,81.182,81.127,15.36332564]
[1770814325263,16.81586567,81.159,81.127,15.36332564]
[1770814325462,16.81586567,81.159,81.12,11.1007]
[1770814326167,3.49813993,81.15,81.12,11.1007]
[1770814326365,20.30086223,81.15,81.12,11.1007]
[1770814326565,20.30086223,81.15,81.112,11.1017]
[1770814327265,3.49813993,81.14,81.112,11.1017]
[1770814327463,20.30086223,81.15,81.112,11.1017]
[1770814328972,3.49813993,81.13,81.093,15.36332564]
[1770814329170,3.49813993,81.13,81.089,19.32599503]
[1770814330774,3.49813993,81.13,81.095,11.1041]
[1770814335273,3.49813993,81.12,81.089,19.32599503]
[1770814337976,3.49813993,81.12,81.053,45.01755887]
[1770814337977,3.49813993,81.11,81.079,52.55039449]
[1770814344974,11.1023,81.109,81.071,63.75084243]
[1770814345773,98.38,81.126,81.078,52.64989264]
[1770814345969,3.49813993,81.12,81.078,52.64989264]
[1770814346373,113.5,81.136,81.081,52.64989264]
[1770814346566,3.49813993,81.13,81.081,52.64989264]
[1770814347176,11.0999,81.126,81.09,52.44419962]
[1770814349673,14.59893993,81.12,81.09,52.44419962]
[1770814349875,3.49813993,81.13,81.09,52.44419962]
[1770814350668,11.0998,81.127,81.09,52.44419962]
[1770814356987,113.5,81.144,81.095,52.83492696]
[1770814356988,11.0989,81.134,81.095,52.83492696]
[1770814358191,11.0989,81.134,81.047,22.79785887]
[1770814358192,113.5,81.144,81.105,52.83727511]
[1770814358395,22.1856,81.179,81.068,22.2156]
[1770814358396,3.49813993,81.16,81.111,52.83727511]
[1770814358786,11.0945,81.166,81.122,52.88125175]
[1770814358979,102.81813993,81.17,81.122,52.88125175]
[1770814358980,102.81972983,81.17,81.122,52.88125175]
[1770814359185,3.49972983,81.18,81.131,52.88125175]
[1770814360692,11.0935,81.173,81.134,52.6765003]
[1770814362388,22.1792,81.202,81.111,52.67860706]
[1770814362389,3.49972983,81.16,81.111,52.67860706]
[1770814363089,11.0948,81.164,81.111,52.67860706]
[1770814363697,11.0948,81.164,81.121,52.67761827]
[1770814364687,11.0959,81.156,81.121,52.67761827]
[1770814364888,3.49972983,81.16,81.121,52.67761827]
[1770814365093,152.21972983,81.17,81.121,52.67761827]
[1770814365797,11.0948,81.164,81.121,52.67761827]
[1770814368601,11.0964,81.152,81.121,52.67761827]
[1770814371210,148.72,81.17,81.121,52.67761827]
[1770814371508,177.04,81.173,81.121,52.67761827]
[1770814372811,11.0945,81.166,81.121,63.77811827]
[1770814373006,11.0945,81.166,81.131,52.59625762]
[1770814373206,3.49972983,81.18,81.131,52.59625762]
[1770814374709,11.0937,81.172,81.135,52.53808549]
[1770814375712,11.0941,81.169,81.135,52.53808549]
[1770814382519,322.22,81.173,81.135,63.63678549]
[1770814383315,11.0932,81.175,81.135,63.63678549]
[1770814384016,322.58,81.181,81.135,63.63678549]
[1770814384017,11.094,81.17,81.135,63.63678549]
[1770814384610,3.49972983,81.18,81.12,3.49972983]
[1770814384611,11.0965,81.151,81.12,3.49972983]
[1770814384816,3.49972983,81.16,81.11,3.49972983]
[1770814385014,3.49972983,81.17,81.11,3.49972983]
[1770814385216,216.44,81.169,81.13,3.49972983]
[1770814385423,216.44,81.169,81.097,15.36332564]
[1770814385424,11.0954,81.159,81.11,3.49972983]
[1770814386323,11.0954,81.159,81.089,22.2099]
[1770814386324,11.0945,81.166,81.123,11.1003]
[1770814386723,11.0945,81.166,81.124,43.08008654]
[1770814388023,11.0945,81.166,81.131,43.21209451]
[1770814388627,98.36,81.172,81.133,43.21209451]
[1770814388822,11.0935,81.173,81.133,43.21209451]
[1770814390030,11.0935,81.173,81.13,3.49972983]
[1770814390031,11.0935,81.173,81.136,43.0624191]
[1770814390221,318.8,81.182,81.136,43.0624191]
[1770814390523,318.8,81.182,81.151,43.0624191]
[1770814391332,11.0921,81.184,81.151,43.0624191]
[1770814392818,324.48,81.191,81.154,42.88967704]
[1770814395318,3.49972983,81.18,81.141,42.89801665]
[1770814395524,3.49972983,81.19,81.141,42.89801665]
[1770814396530,325.82,81.191,81.141,42.89801665]
[1770814396531,11.093,81.177,81.141,42.89801665]
[1770814396825,3.49972983,81.19,81.141,42.89801665]
[1770814397223,11.0927,81.179,81.142,11.0977]
[1770814397419,11.0927,81.179,81.143,42.91260231]
[1770814397837,11.0935,81.173,81.131,42.91457126]
[1770814398827,11.0935,81.173,81.133,43.0200069]
[1770814399028,338.2735,81.173,81.133,43.0200069]
[1770814399931,11.0935,81.173,81.133,43.0200069]
[1770814409336,11.0935,81.173,81.136,43.0457068]
[1770814414038,3.49972983,81.17,81.126,43.04363189]
[1770814414242,3.49972983,81.16,81.126,43.04363189]
[1770814415738,11.0955,81.159,81.126,43.04363189]
[1770814419535,11.0946,81.165,81.128,43.12159348]
[1770814419741,335.1,81.164,81.128,43.12159348]
[1770814419937,335.1,81.164,81.13,11.0992]
[1770814419938,11.0949,81.163,81.13,11.0992]
[1770814420139,11.0949,81.163,81.131,43.1230487]
[1770814423647,335.1,81.164,81.131,43.1230487]
[1770814424240,3.49979811,81.18,81.118,486.59181638]
[1770814424241,11.0932,81.176,81.137,42.92726312]
[1770814424441,337.24,81.17,81.137,42.92726312]
[1770814424638,340.73979811,81.17,81.137,42.92726312]
[1770814425347,341.13979811,81.17,81.137,42.92726312]
[1770814428052,337.64,81.17,81.137,42.92726312]
[1770814429154,11.0937,81.172,81.137,42.92726312]
[1770814429348,229.04,81.171,81.137,42.92726312]
[1770814430249,11.0937,81.172,81.137,42.92726312]
[1770814430454,350.7337,81.172,81.137,42.92726312]
[1770814431052,3.49979811,81.17,81.137,42.92726312]
[1770814434250,350.7337,81.172,81.137,42.92726312]
[1770814434251,11.0937,81.172,81.137,42.92726312]
[1770814434457,352.5137,81.172,81.137,42.92726312]
[1770814438157,11.0944,81.167,81.137,42.92726312]
[1770814438350,3.49979811,81.16,81.119,42.82148762]
[1770814438754,3.49979811,81.16,81.119,53.92228762]
[1770814438955,3.49979811,81.16,81.12,42.85320715]
[1770814439862,109.4352,81.161,81.123,42.8542223]
[1770814440060,109.4352,81.161,81.124,42.8542223]
[1770814442063,11.0952,81.161,81.124,42.8542223]
[1770814443154,11.0952,81.161,81.125,43.00824796]
[1770814446069,3.49979811,81.15,81.118,486.59181638]
[1770814446968,11.096,81.155,81.119,42.9740957]
[1770814447668,11.0948,81.163,81.125,42.9740957]
[1770814448859,11.0948,81.163,81.128,42.95538318]
[1770814460283,3.49979811,81.17,81.131,42.92051978]
[1770814460582,344.82,81.172,81.131,42.92051978]
[1770814460884,11.0935,81.173,81.131,42.92051978]
[1770814461785,11.0935,81.173,81.136,42.90471081]
[1770814462584,11.0935,81.173,81.129,15.36332564]
[1770814462585,11.51843214,81.201,81.141,35.60806176]
[1770814462887,11.51843214,81.201,81.043,518.5236]
[1770814462888,3.49979811,81.23,81.181,22.13914459]
[1770814463090,3.49979811,81.22,81.181,22.13914459]
[1770814464786,14.58689811,81.22,81.181,22.13914459]
[1770814465188,351.4,81.221,81.181,22.13914459]
[1770814465383,3.49979811,81.22,81.181,22.13914459]
[1770814465992,101.83979811,81.22,81.181,22.13914459]
[1770814466784,0.11876174,81.219,81.181,22.13914459]
[1770814468898,0.11876174,81.219,81.182,22.00526282]
[1770814470092,125.88,81.221,81.182,22.00526282]
[1770814473399,3.49979811,81.21,81.172,21.86157038]
[1770814474700,14.58829811,81.21,81.172,21.86157038]
[1770814476890,14.69058377,81.21,81.172,21.86157038]
[1770814478497,0.13036366,81.209,81.172,21.86157038]
[1770814478797,0.16093273,81.207,81.172,21.86157038]
[1770814479496,0.16093273,81.207,81.161,21.83529786]
[1770814479701,0.10058715,81.199,81.161,21.83529786]
[1770814480805,11.0901,81.198,81.161,21.83529786]
[1770814486705,3.5289851,81.2,81.166,21.94618968]
[1770814487303,0.03162535,81.2,81.166,21.94618968]
[1770814487805,11.0891,81.205,81.166,21.94618968]
[1770814490003,2.14350389,81.233,81.194,19.82725207]
[1770814490200,11.01369155,81.229,81.194,19.82725207]
[1770814490409,3.49735975,81.21,81.182,20.34126158]
[1770814490603,11.02831371,81.199,81.162,20.34126158]
[1770814493407,11.02831371,81.199,81.163,20.34126158]
[1770814493607,26.3124145,81.21,81.163,20.34126158]
[1770814494306,11.0888,81.208,81.165,20.34126158]
[1770814496101,11.0888,81.208,81.168,20.34126158]
[1770814496306,3.49735975,81.2,81.168,20.34126158]
[1770814496607,11.82321582,81.199,81.168,20.34126158]
[1770814497812,11.0904,81.196,81.168,20.34126158]
[1770814500610,22.1675,81.245,81.154,11.45390322]
[1770814500611,20.21697779,81.189,81.154,11.45390322]
[1770814500808,23.71433754,81.18,81.145,11.45390322]
[1770814501207,24.10457466,81.18,81.145,11.45390322]
[1770814501404,24.10457466,81.18,81.146,11.45390322]
[1770814501405,3.88759687,81.18,81.146,11.45390322]
[1770814501611,3.88759687,81.19,81.146,11.45390322]
[1770814502309,24.10457466,81.19,81.15,11.45390322]
[1770814502712,11.0913,81.189,81.153,20.34126158]
[1770814502904,20.21697779,81.202,81.157,20.34126158]
[1770814503105,3.88759687,81.2,81.157,20.34126158]
[1770814503301,24.10457466,81.2,81.158,20.34126158]
[1770814503708,11.0903,81.197,81.158,20.34126158]
[1770814503914,3.88759687,81.19,81.158,20.34126158]
[1770814504114,24.10457466,81.2,81.158,20.34126158]
[1770814504309,24.10457466,81.2,81.158,11.45390322]
[1770814504509,24.10457466,81.2,81.159,20.34126158]
[1770814504708,11.09,81.199,81.159,20.34126158]
[1770814505411,11.09,81.199,81.161,20.34126158]
[1770814507213,31.30697779,81.199,81.161,20.34126158]
[1770814509021,3.88759687,81.2,81.161,20.34126158]
[1770814509022,11.0904,81.192,81.161,20.34126158]
[1770814511023,134.32,81.203,81.161,20.34126158]
[1770814511819,11.0884,81.202,81.163,11.0937]
[1770814512015,11.0884,81.202,81.164,20.34126158]
[1770814512524,134.32,81.203,81.164,20.34126158]
[1770814513224,20.21697779,81.219,81.177,20.34126158]
[1770814514521,3.88759687,81.21,81.177,20.34126158]
[1770814515523,11.0862,81.218,81.177,20.34126158]
[1770814515827,11.0851,81.226,81.181,20.34126158]
[1770814516921,11.0851,81.226,81.184,20.34126158]
[1770814517117,24.10457466,81.21,81.174,20.34126158]
[1770814517318,24.10457466,81.21,81.164,20.34126158]
[1770814517728,24.10457466,81.21,81.166,20.34126158]
[1770814518830,20.21697779,81.21,81.177,20.34126158]
[1770814519528,24.10457466,81.21,81.177,20.34126158]
[1770814520830,20.99055063,81.208,81.168,11.0929]
[1770814521033,20.99055063,81.208,81.169,20.60524655]
[1770814521532,20.99055063,81.208,81.173,20.60524655]
[1770814521831,11.0868,81.214,81.175,20.60524655]
[1770814523836,190.17055063,81.221,81.181,20.60524655]
[1770814524038,3.88759687,81.22,81.181,20.60524655]
[1770814524732,20.99055063,81.217,81.181,20.60524655]
[1770814525736,11.087,81.213,81.181,20.60524655]
[1770814527638,3.88759687,81.22,81.181,20.60524655]
[1770814528830,3.88759687,81.22,81.182,22.04874316]
[1770814529432,20.83643351,81.209,81.171,22.04874316]
[1770814529628,3.88759687,81.2,81.171,22.04874316]
[1770814530230,11.089,81.198,81.171,22.04874316]
[1770814531834,11.089,81.198,81.163,11.0937]
[1770814531835,20.83643351,81.197,81.161,22.04874316]
[1770814532029,3.88759687,81.19,81.161,22.04874316]
[1770814532639,20.83643351,81.197,81.161,22.04874316]
[1770814532840,11.0902,81.189,81.161,22.04874316]
[1770814533437,3.88759687,81.2,81.163,22.04874316]
[1770814534642,11.0885,81.202,81.163,22.04874316]
[1770814536846,3.88759687,81.2,81.163,22.04874316]
[1770814538739,3.88759687,81.2,81.165,11.0934]
[1770814539052,3.88759687,81.21,81.166,22.04874316]
[1770814539337,20.83643351,81.209,81.168,22.04874316]
[1770814540834,3.88759687,81.21,81.172,22.04874316]
[1770814542848,3.88453426,81.21,81.172,22.04874316]
[1770814544949,11.0863,81.218,81.172,22.04874316]
[1770814546857,11.0863,81.218,81.185,22.04874316]
[1770814547953,11.0857,81.222,81.185,22.04874316]
[1770814548361,20.83643351,81.232,81.185,22.04874316]
[1770814548748,20.83643351,81.219,81.181,22.04874316]
[1770814549854,11.0862,81.218,81.181,22.04874316]
[1770814551455,32.97723592,81.218,81.181,22.04874316]
[1770814551844,32.97723592,81.218,81.182,33.24568973]
[1770814552049,32.97723592,81.218,81.183,22.15468973]
[1770814553353,25.77557018,81.21,81.17,22.15468973]
[1770814553955,3.88453426,81.2,81.17,22.15468973]
[1770814554957,3.88453426,81.2,81.171,33.24728973]
[1770814555353,3.88453426,81.2,81.173,11.0923]
[1770814556053,25.77557018,81.21,81.173,11.0923]
[1770814556652,25.77557018,81.21,81.173,22.15468973]
[1770814556653,11.0883,81.203,81.173,22.15468973]
[1770814557762,21.89103592,81.189,81.152,15.3717604]
[1770814558059,21.89103592,81.189,81.149,22.15468973]
[1770814558760,21.89103592,81.189,81.15,11.0954]
[1770814559660,25.77557018,81.18,81.149,22.15468973]
[1770814560357,25.77557018,81.18,81.126,22.79785887]
[1770814560358,3.88453426,81.16,81.129,15.3717604]
[1770814560556,3.88453426,81.16,81.121,22.15468973]
[1770814560557,3.88453426,81.16,81.127,15.3717604]
[1770814560757,21.89103592,81.169,81.124,22.15468973]
[1770814561258,3.88453426,81.16,81.124,22.15468973]
[1770814561454,25.77557018,81.16,81.124,22.15468973]
[1770814567061,21.89103592,81.175,81.124,22.15468973]
[1770814567268,3.88453426,81.16,81.124,22.15468973]
[1770814569669,11.0934,81.166,81.124,22.15468973]
[1770814571859,11.0931,81.168,81.124,22.15468973]
[1770814572066,25.77557018,81.17,81.124,22.15468973]
[1770814573774,25.77557018,81.17,81.13,11.0982]
[1770814574073,25.77557018,81.17,81.131,22.15468973]
[1770814574771,25.77557018,81.17,81.133,22.15468973]
[1770814575175,21.89103592,81.164,81.123,22.15468973]
[1770814576574,3.88453426,81.17,81.13,22.15468973]
[1770814577672,11.0929,81.169,81.131,11.098]
[1770814577975,11.0929,81.169,81.132,22.15468973]
[1770814578270,25.77557018,81.16,81.124,11.0989]
[1770814578673,25.77557018,81.16,81.125,22.15468973]
[1770814578976,3.88453426,81.16,81.125,22.15468973]
[1770814579771,3.88453426,81.16,81.127,22.15468973]
[1770814581477,36.86847018,81.17,81.13,22.65968142]
[1770814581677,34.4877191,81.168,81.13,22.65968142]
[1770814581882,23.3945191,81.167,81.13,22.65968142]
[1770814583482,3.88453426,81.16,81.13,22.65968142]
[1770814584587,23.3945191,81.167,81.13,22.65968142]
[1770814584786,11.0933,81.166,81.132,22.65968142]
[1770814584986,23.3945191,81.165,81.132,22.65968142]
[1770814586479,3.88453426,81.16,81.132,22.65968142]
[1770814588085,22.1404979,81.163,81.132,22.65968142]
[1770814588886,22.1404979,81.163,81.123,34.45135806]
[1770814589182,22.1404979,81.163,81.124,23.35225806]
[1770814589680,22.1404979,81.159,81.124,23.35225806]
[1770814590890,11.0951,81.153,81.124,23.35225806]
[1770814591688,33.2347979,81.159,81.124,23.35225806]
[1770814591881,3.88453426,81.16,81.124,23.35225806]
[1770814592085,26.02503216,81.16,81.124,23.35225806]
[1770814593792,26.02503216,81.16,81.128,11.0984]
[1770814595890,26.02503216,81.16,81.128,34.45065806]
[1770814596187,26.02503216,81.16,81.131,23.35225806]
[1770814596389,26.02503216,81.16,81.111,23.35225806]
[1770814597690,26.02503216,81.16,81.126,11.0987]
[1770814599084,26.02503216,81.16,81.128,11.0985]
[1770814599290,22.1404979,81.16,81.129,23.35225806]
[1770814600100,22.1404979,81.16,81.131,11.098]
[1770814600490,22.1404979,81.16,81.131,34.45025806]
[1770814600694,22.1404979,81.16,81.132,23.35225806]
[1770814601788,26.02503216,81.16,81.131,11.098]
[1770814602596,22.1404979,81.16,81.131,11.098]